fUSD/lending_fUSD_20250413
["ID","MTS","AMOUNT","RATE_DAILY","PERIOD"]
[357893821,1744522240570,-500.0,0.00019452,2]
[357893822,1744522240579,-500.0,0.00019452,2]
[357893823,1744522240588,-894.41,0.00019452,2]
[357893824,1744522240597,-568.56,0.00019452,2]
[357893825,1744522240606,-500.0,0.00019452,2]
[357893826,1744522240615,-500.0,0.00019452,2]
[357893827,1744522240624,-500.0,0.00019452,2]
[357893828,1744522240636,-693.16,0.00019452,2]
[357893829,1744522240645,-500.0,0.00019452,2]
[357893830,1744522240654,-500.0,0.00019452,2]
[357893831,1744522240663,-500.0,0.00019452,2]
[357893832,1744522240673,-500.0,0.00019452,2]
[357893833,1744522240682,-500.0,0.00019452,2]
[357893834,1744522240691,-500.0,0.00019452,2]
[357893835,1744522240699,-500.0,0.00019452,2]
[357893836,1744522240710,-1650.52,0.00019452,2]
[357893837,1744522240719,-548.29,0.000195,2]
[357893838,1744522240729,-434.75377164,0.00019547,2]
[357893839,1744522240738,-189.17,0.00019645,2]
[357893840,1744522240747,-2500.0,0.000197,2]
[357893841,1744522240756,-500.0,0.00019726,2]
[357893842,1744522240765,-500.0,0.00019726,2]
[357893843,1744522240774,-500.0,0.00019726,2]
[357893844,1744522240783,-565.37597086,0.00019726,2]
[357893845,1744522240793,-500.0,0.00019726,2]
[357893846,1744522240803,-500.0,0.00019726,2]
[357893847,1744522240811,-2360.82,0.00019726,2]
[357893848,1744522240821,-500.0,0.00019726,2]
[357893849,1744522241021,-559.07817747,0.00019726,2]
[357893850,1744522241030,-500.0,0.00019726,2]
[357893851,1744522241040,-683.36,0.00019726,2]
[357893852,1744522241049,-678.81,0.00019726,2]
[357893853,1744522241058,-500.0,0.00019726,2]
[357893854,1744522241068,-834.65,0.00019726,2]
[357893855,1744522241077,-500.0,0.00019726,2]
[357893856,1744522241086,-500.0,0.00019726,2]
[357893857,1744522241095,-500.0,0.00019726,2]
[357893858,1744522241105,-15014.82,0.00019726,2]
[357893859,1744522241115,-500.0,0.00019726,2]
[357893860,1744522241124,-500.0,0.00019726,2]
[357893861,1744522241134,-500.0,0.00019726,2]
[357893862,1744522241143,-500.0,0.00019726,2]
[357893863,1744522241152,-894.41,0.00019726,2]
[357893864,1744522241162,-568.56,0.00019726,2]
[357893865,1744522241171,-500.0,0.00019726,2]
[357893866,1744522241181,-500.0,0.00019726,2]
[357893867,1744522241190,-500.0,0.00019726,2]
[357893868,1744522241199,-693.16,0.00019726,2]
[357893869,1744522241208,-500.0,0.00019726,2]
[357893870,1744522241217,-500.0,0.00019726,2]
[357893871,1744522241226,-500.0,0.00019726,2]
[357893872,1744522241235,-500.0,0.00019726,2]
[357893873,1744522241244,-500.0,0.00019726,2]
[357893874,1744522241253,-500.0,0.00019726,2]
[357893875,1744522241263,-500.0,0.00019726,2]
[357893876,1744522241273,-1650.52,0.00019726,2]
[357893877,1744522241282,-36097.334,0.000198,2]
[357893878,1744522241291,-250.0,0.000198,2]
[357893879,1744522241300,-250.0,0.000198,2]
[357893880,1744522241310,-250.0,0.000198,2]
[357893881,1744522241319,-1831.3207,0.00019899,2]
[357893882,1744522241329,-12368.4603,0.00019899,2]
[357893883,1744522241338,-365.73127555,0.000199,2]
[357893884,1744522241347,-434.75377164,0.00019905,2]
[357893885,1744522241357,-465.143,0.00019967,2]
[357893886,1744522241366,-500.0,0.00019973,2]
[357893887,1744522241375,-414.72322531,0.00019973,2]
[357893888,1744522241384,-500.0,0.00019973,2]
[357893889,1744522241393,-514.45733583,0.00019973,2]
[357893890,1744522241402,-500.0,0.00019973,2]
[357893891,1744522241412,-254.40088399,0.00019973,2]
[357893892,1744522241421,-500.0,0.00019973,2]
[357893893,1744522241431,-6624.185117,0.00019986,2]
[357893894,1744522241440,-23873.1944606,0.00019986,2]
[357893895,1744522241450,-1589.3926595,0.00019986,2]
[357893896,1744522241459,-1086.0,0.0002,2]
[357893897,1744522241469,-16540.54202806,0.0002,2]
[357893898,1744522241480,-519.35359288,0.0002,2]
[357893899,1744522241490,-56102.58927248,0.0002,2]
[357893900,1744522241507,-1732.4095163,0.0002,2]
[357893901,1744522241518,-4287.36,0.0002,2]
[357893902,1744522241529,-797.6518777,0.0002,2]
[357893903,1744522241540,-5371.0,0.0002,2]
[357893904,1744522241551,-18923.83807883,0.0002,2]
[357893905,1744522241562,-2000.0,0.0002,2]
[357893906,1744522241573,-4338.10210443,0.0002,2]
[357893925,1744522242815,-1204.30120195,0.0002,2]
[357893926,1744522245649,-8969.90115002,0.0002,2]
[357893927,1744522245660,-3986.50608536,0.0002,2]
[357893928,1744522245709,-33958.1790796,0.0002,2]
[357893929,1744522245772,-35446.24444866,0.0002,2]
[357893930,1744522245782,-98949.27854491,0.0002,2]
[357893931,1744522245892,-6041.04777261,0.0002,2]
[357893932,1744522245903,-538.745,0.0002,2]
[357893933,1744522245914,-10654.25985,0.0002,2]
[357893934,1744522245926,-75050.85222086,0.0002,2]
[357893935,1744522246010,-1827.53792509,0.0002,2]
[357893936,1744522246021,-5091.00271646,0.0002,2]
[357893937,1744522246033,-11235.34259432,0.0002,2]
[357893940,1744522604554,291.40888881,0.00017225,2]
[357893941,1744522604585,255.01111119,0.00017225,2]
[357893942,1744522994521,1711.02529297,0.0002,20]
[357893943,1744523108978,1775.79677486,7.945e-05,2]
[357893944,1744523109008,2025.21852582,7.945e-05,2]
[357893945,1744523109037,2106.07985395,7.945e-05,2]
[357893946,1744523109063,2659.92568351,7.945e-05,2]
[357893947,1744523109087,3157.08701586,7.945e-05,2]
[357893949,1744523312563,1143.66749664,0.0002,20]
[357893955,1744523431860,-200.0,0.00018598,2]
[357893956,1744523431870,-157.04,0.00018747,2]
[357893957,1744523431880,-300.0,0.00018796,2]
[357893958,1744523431889,-1366.58144666,0.00018797,2]
[357893959,1744523431976,-391.54782696,0.00018797,2]
[357893960,1744523431988,-286.24606077,0.00018797,2]
[357893961,1744523431999,-441.163,0.00018797,2]
[357893962,1744523432011,-691.54979015,0.00018797,2]
[357893963,1744523432036,-325.11200482,0.00018797,2]
[357893964,1744523432051,-5813.88047689,0.00018797,2]
[357893969,1744523437905,-1363.83747749,0.00018797,2]
[357893970,1744523437917,-2360.87539138,0.00018797,2]
[357893971,1744523437929,-2916.36652488,0.00018797,2]
[357893972,1744523437938,-179.27654747,0.00018943,2]
[357893973,1744523437948,-179.27654747,0.00019078,2]
[357893974,1744523437958,-692.9022234,0.00019142,2]
[357893975,1744523438022,-0.79690213,0.00019142,2]
[357893976,1744523438033,-383.96168975,0.00019142,2]
[357893977,1744523438050,-860.37011494,0.00019142,2]
[357893978,1744523438059,-14865.0236921,0.00019143,2]
[357893979,1744523438139,-9034.9763079,0.00019143,2]
[357893980,1744523438149,-150.0,0.00019151,2]
[357893981,1744523438158,-6465.89351645,0.00019168,2]
[357893982,1744523438168,-850.0,0.00019177,2]
[357893983,1744523438178,-500.0,0.00019178,2]
[357893984,1744523438188,-500.0,0.00019178,2]
[357893985,1744523438198,-500.0,0.00019178,2]
[357893986,1744523438208,-250.221345,0.00019178,2]
[357893987,1744523438218,-500.0,0.00019178,2]
[357893988,1744523438228,-500.0,0.00019178,2]
[357893989,1744523438238,-593.96,0.00019178,2]
[357893990,1744523438247,-730.32,0.00019178,2]
[357893992,1744523438256,-500.0,0.00019178,2]
[357893994,1744523438266,-500.0,0.00019178,2]
[357893996,1744523438275,-500.0,0.00019178,2]
[357893997,1744523438284,-6589.22716078,0.00019178,2]
[357894059,1744523440185,-6548.74283922,0.00019178,2]
[357894060,1744523440195,-500.0,0.00019178,2]
[357894061,1744523440204,-1824.39,0.00019178,2]
[357894062,1744523440214,-782.61,0.00019178,2]
[357894063,1744523440223,-500.0,0.00019178,2]
[357894064,1744523440233,-438.80308448,0.00019178,2]
[357894065,1744523440244,-500.0,0.00019178,2]
[357894066,1744523440253,-500.0,0.00019178,2]
[357894067,1744523440263,-500.0,0.00019178,2]
[357894068,1744523440273,-500.0,0.00019178,2]
[357894069,1744523440283,-500.0,0.00019178,2]
[357894070,1744523440292,-500.0,0.00019178,2]
[357894071,1744523440301,-606.51,0.00019178,2]
[357894072,1744523440311,-500.0,0.00019178,2]
[357894073,1744523440320,-500.0,0.00019178,2]
[357894074,1744523440329,-500.0,0.00019178,2]
[357894075,1744523440338,-500.0,0.00019178,2]
[357894076,1744523440348,-596.23224769,0.00019178,2]
[357894077,1744523440357,-500.0,0.00019178,2]
[357894078,1744523440367,-1444.21,0.00019178,2]
[357894079,1744523440376,-500.0,0.00019178,2]
[357894080,1744523440385,-500.0,0.00019178,2]
[357894081,1744523440395,-2065.72,0.00019178,2]
[357894082,1744523440404,-500.0,0.00019178,2]
[357894083,1744523440413,-500.0,0.00019178,2]
[357894084,1744523440422,-500.0,0.00019178,2]
[357894085,1744523440431,-500.0,0.00019178,2]
[357894086,1744523440441,-235.18257177,0.00019178,2]
[357894087,1744523440450,-508.09,0.00019182,2]
[357894088,1744523440459,-224.4549,0.00019351,2]
[357894089,1744523440469,-150.0,0.00019351,2]
[357894090,1744523440478,-779.99148848,0.00019352,2]
[357894091,1744523440488,-1000.0,0.00019352,2]
[357894092,1744523440497,-280.0,0.00019406,2]
[357894093,1744523440507,-779.99148842,0.00019413,2]
[357894094,1744523440516,-198.86575981,0.00019449,2]
[357894095,1744523440526,-604.6320179,0.00019449,2]
[357894096,1744523440535,-604.6320179,0.00019449,2]
[357894097,1744523440544,-604.6320179,0.00019449,2]
[357894098,1744523440554,-604.6320179,0.00019449,2]
[357894099,1744523440563,-604.6320179,0.00019449,2]
[357894100,1744523440572,-604.6320179,0.00019449,2]
[357894101,1744523440581,-604.6320179,0.00019449,2]
[357894102,1744523440590,-604.6320179,0.00019449,2]
[357894103,1744523440600,-604.6320179,0.00019449,2]
[357894104,1744523440609,-604.6320179,0.00019449,2]
[357894105,1744523440618,-604.6320179,0.00019449,2]
[357894106,1744523440627,-604.6320179,0.00019449,2]
[357894107,1744523440636,-604.6320179,0.00019449,2]
[357894108,1744523440645,-604.6320179,0.00019449,2]
[357894109,1744523440654,-604.6320179,0.00019449,2]
[357894110,1744523440663,-604.6320179,0.00019449,2]
[357894112,1744523440672,-604.6320179,0.00019449,2]
[357894113,1744523440681,-604.6320179,0.00019449,2]
[357894114,1744523440690,-604.6320179,0.00019449,2]
[357894115,1744523440699,-604.6320179,0.00019449,2]
[357894116,1744523440708,-604.6320179,0.00019449,2]
[357894117,1744523440716,-604.6320179,0.00019449,2]
[357894118,1744523440725,-604.6320179,0.00019449,2]
[357894119,1744523440734,-562.46920843,0.00019449,2]
[357894120,1744523440746,-42.16280947,0.00019449,2]
[357894121,1744523440755,-604.6320179,0.00019449,2]
[357894122,1744523440764,-63.14630987,0.00019449,2]
[357894123,1744523440776,-541.48570803,0.00019449,2]
[357894124,1744523440784,-73.21829197,0.00019449,2]
[357894125,1744523440805,-531.41372593,0.00019449,2]
[357894126,1744523440815,-349.45212491,0.00019449,2]
[357894127,1744523440837,-255.17989299,0.00019449,2]
[357894128,1744523440847,-604.6320179,0.00019449,2]
[357894129,1744523440855,-604.6320179,0.00019449,2]
[357894130,1744523440865,-604.6320179,0.00019449,2]
[357894131,1744523440875,-604.6320179,0.00019449,2]
[357894132,1744523440884,-604.6320179,0.00019449,2]
[357894133,1744523440893,-604.6320179,0.00019449,2]
[357894134,1744523440903,-604.6320179,0.00019449,2]
[357894135,1744523440912,-604.6320179,0.00019449,2]
[357894136,1744523440921,-604.6320179,0.00019449,2]
[357894137,1744523440931,-604.6320179,0.00019449,2]
[357894138,1744523440940,-604.6320179,0.00019449,2]
[357894139,1744523440949,-604.6320179,0.00019449,2]
[357894140,1744523440959,-604.6320179,0.00019449,2]
[357894141,1744523440968,-604.6320179,0.00019449,2]
[357894142,1744523440977,-604.6320179,0.00019449,2]
[357894143,1744523440986,-604.6320179,0.00019449,2]
[357894144,1744523440995,-129.42372086,0.00019449,2]
[357894145,1744523441019,-475.20829704,0.00019449,2]
[357894146,1744523441028,-604.6320179,0.00019449,2]
[357894147,1744523441037,-604.6320179,0.00019449,2]
[357894148,1744523441046,-604.6320179,0.00019449,2]
[357894149,1744523441056,-597.25845671,0.00019449,2]
[357894150,1744523441065,-597.25845671,0.00019449,2]
[357894151,1744523441074,-597.25845671,0.00019449,2]
[357894152,1744523441083,-597.25845671,0.00019449,2]
[357894153,1744523441093,-597.25845671,0.00019449,2]
[357894154,1744523441103,-597.25845671,0.00019449,2]
[357894155,1744523441111,-597.25845671,0.00019449,2]
[357894156,1744523441121,-597.25845671,0.00019449,2]
[357894157,1744523441130,-597.25845671,0.00019449,2]
[357894158,1744523441139,-597.25845671,0.00019449,2]
[357894159,1744523441148,-597.25845671,0.00019449,2]
[357894160,1744523441158,-597.25845671,0.00019449,2]
[357894161,1744523441167,-597.25845671,0.00019449,2]
[357894162,1744523441176,-597.25845671,0.00019449,2]
[357894163,1744523441186,-597.25845671,0.00019449,2]
[357894164,1744523441195,-597.25845671,0.00019449,2]
[357894165,1744523441204,-597.25845671,0.00019449,2]
[357894166,1744523441213,-597.25845671,0.00019449,2]
[357894167,1744523441222,-597.25845671,0.00019449,2]
[357894168,1744523441232,-34.67853745,0.00019449,2]
[357894184,1744523443033,-562.57991926,0.00019449,2]
[357894185,1744523443043,-597.25845671,0.00019449,2]
[357894186,1744523443055,-407.33467165,0.00019449,2]
[357894187,1744523444663,-189.92378506,0.00019449,2]
[357894188,1744523444672,-362.94096939,0.00019449,2]
[357894189,1744523444683,-234.31748732,0.00019449,2]
[357894190,1744523444691,-597.25845671,0.00019449,2]
[357894191,1744523444700,-597.25845671,0.00019449,2]
[357894192,1744523444709,-597.25845671,0.00019449,2]
[357894193,1744523444718,-597.25845671,0.00019449,2]
[357894194,1744523444726,-597.25845671,0.00019449,2]
[357894195,1744523444735,-597.25845671,0.00019449,2]
[357894196,1744523444744,-597.25845671,0.00019449,2]
[357894197,1744523444753,-593.18623998,0.00019449,2]
[357894198,1744523444762,-593.18623998,0.00019449,2]
[357894199,1744523444771,-593.18623998,0.00019449,2]
[357894200,1744523444780,-593.18623998,0.00019449,2]
[357894201,1744523444789,-593.18623998,0.00019449,2]
[357894202,1744523444798,-593.18623998,0.00019449,2]
[357894203,1744523444808,-593.18623998,0.00019449,2]
[357894204,1744523444817,-593.18623998,0.00019449,2]
[357894205,1744523444826,-593.18623998,0.00019449,2]
[357894206,1744523444835,-593.18623998,0.00019449,2]
[357894207,1744523444844,-593.18623993,0.00019449,2]
[357894208,1744523444853,-500.0,0.00019452,2]
[357894209,1744523444863,-500.0,0.00019452,2]
[357894210,1744523444872,-500.0,0.00019452,2]
[357894211,1744523444882,-395.8392905,0.00019452,2]
[357894212,1744523444892,-593.96,0.00019452,2]
[357894213,1744523444901,-730.32,0.00019452,2]
[357894214,1744523444911,-500.0,0.00019452,2]
[357894215,1744523444920,-500.0,0.00019452,2]
[357894216,1744523444930,-362.46416265,0.00019452,2]
[357894217,1744523444940,-8451.19843502,0.00019452,2]
[357894218,1744523444985,-566.29424979,0.00019452,2]
[357894220,1744523445947,-3966.25,0.00018929,2]
[357894221,1744523445956,-4120.47731519,0.00019452,2]
[357894222,1744523445966,-500.0,0.00019452,2]
[357894223,1744523445975,-1824.39,0.00019452,2]
[357894224,1744523445984,-60.66716781,0.00019452,2]
[357894225,1744523446011,-721.94283219,0.00019452,2]
[357894226,1744523446021,-500.0,0.00019452,2]
[357894227,1744523446031,-500.0,0.00019452,2]
[357894228,1744523446040,-500.0,0.00019452,2]
[357894229,1744523446054,-500.0,0.00019452,2]
[357894230,1744523446063,-500.0,0.00019452,2]
[357894231,1744523446073,-401.00753303,0.00019452,2]
[357894232,1744523446082,-128.13418617,0.00019452,2]
[357894233,1744523446241,-478.37581383,0.00019452,2]
[357894235,1744523446250,-500.0,0.00019452,2]
[357894237,1744523446259,-177.04265046,0.00019452,2]
[357894239,1744523446271,-322.95734954,0.00019452,2]
[357894241,1744523446280,-319.83144433,0.00019452,2]
[357894243,1744523446289,-21.03120613,0.00019452,2]
[357894476,1744523654057,229.81104633,0.00016811,2]
[357894477,1744523654080,289.27895367,0.00016811,2]
[357894478,1744523773276,5559.0,0.0002,5]
[357894479,1744523794949,150.00550229,0.0002,25]
[357894480,1744524017294,150.368195,0.0003,30]
[357894481,1744524017599,150.368195,0.0003,30]
[357894482,1744524017882,150.368195,0.0003,30]
[357894483,1744524018175,150.368195,0.0003,30]
[357894484,1744524018800,151.612995,0.0003,30]
[357894485,1744524020609,150.368195,0.0003,31]
[357894486,1744524020900,150.368195,0.0003,31]
[357894487,1744524021193,150.368195,0.0003,31]
[357894488,1744524021505,150.368195,0.0002,4]
[357894489,1744524021808,150.368195,0.0002,4]
[357894490,1744524022146,150.368195,0.0002,4]
[357894491,1744524022446,150.368195,0.0002,5]
[357894492,1744524022743,150.368195,0.0002,5]
[357894493,1744524023028,150.368195,0.0002,5]
[357894494,1744524035294,166.107922,0.0003,30]
[357894496,1744524632427,-169.67,0.00018023,2]
[357894497,1744524632437,-970.011725,0.00018042,2]
[357894499,1744524632492,-413.21193929,0.00018042,2]
[357894501,1744524632504,-5116.77633571,0.00018042,2]
[357894502,1744524632513,-300.0,0.00018145,2]
[357894503,1744524632522,-1113.26974012,0.00018146,2]
[357894504,1744524632533,-1401.37369004,0.00018146,2]
[357894505,1744524632544,-950.26546194,0.00018146,2]
[357894506,1744524632555,-1266.60175907,0.00018146,2]
[357894507,1744524632583,-6278.40934883,0.00018146,2]
[357894508,1744524632593,-1024.48,0.00018185,2]
[357894509,1744524632603,-181.41,0.00018188,2]
[357894510,1744524632613,-382.84069134,0.00018329,2]
[357894511,1744524632622,-382.84069134,0.00018364,2]
[357894512,1744524632631,-166.7,0.00018573,2]
[357894514,1744524632640,-1546.75,0.00018597,2]
[357894515,1744524632649,-970.81,0.00018612,2]
[357894517,1744524632659,-970.81,0.00018617,2]
[357894519,1744524632668,-970.81,0.00018622,2]
[357894521,1744524632677,-970.81,0.00018627,2]
[357894523,1744524632686,-970.81,0.00018632,2]
[357894525,1744524632695,-571.50503861,0.00018637,2]
[357894527,1744524632707,-399.30496139,0.00018637,2]
[357894529,1744524632715,-180.78914197,0.00018641,2]
[357894532,1744524632726,-759.20403673,0.00018641,2]
[357894534,1744524632737,-30.8168213,0.00018641,2]
[357894536,1744524632746,-382.84069134,0.00018645,2]
[357894538,1744524632755,-970.81,0.00018646,2]
[357894540,1744524632764,-970.81,0.00018651,2]
[357894542,1744524632773,-970.81,0.00018656,2]
[357894544,1744524632783,-970.81,0.00018661,2]
[357894546,1744524632792,-970.81,0.00018666,2]
[357894547,1744524632801,-970.81,0.00018671,2]
[357894549,1744524632810,-970.81,0.00018676,2]
[357894552,1744524632821,-970.81,0.00018681,2]
[357894554,1744524632833,-970.81,0.00018686,2]
[357894556,1744524632842,-644.0,0.00018686,2]
[357894558,1744524632851,-970.81,0.0001869,2]
[357894559,1744524632860,-970.81,0.00018695,2]
[357894560,1744524632870,-970.81,0.000187,2]
[357894561,1744524632881,-5985.19,0.00018704,2]
[357894562,1744524632892,-970.81,0.00018705,2]
[357894563,1744524632902,-1000.0,0.00018752,2]
[357894564,1744524632911,-1471.91,0.00018778,2]
[357894565,1744524632921,-11358.59194125,0.00018846,2]
[357894566,1744524632933,-3056.0375105,0.00018846,2]
[357894567,1744524632971,-2208.97184433,0.00018846,2]
[357894568,1744524633002,-1388.51595047,0.00018846,2]
[357894569,1744524633012,-2598.75,0.00018856,2]
[357894570,1744524633023,-382.84069134,0.00018914,2]
[357894571,1744524633032,-250.0,0.00018937,2]
[357894572,1744524633042,-250.0,0.00019,2]
[357894573,1744524633051,-171.81094001,0.00019,2]
[357894574,1744524633060,-519.09,0.00019075,2]
[357894575,1744524633070,-541.65345957,0.00019178,2]
[357894576,1744524633079,-500.0,0.00019178,2]
[357894577,1744524633089,-500.0,0.00019178,2]
[357894578,1744524633099,-500.0,0.00019178,2]
[357894579,1744524633109,-500.0,0.00019178,2]
[357894580,1744524633118,-500.0,0.00019178,2]
[357894581,1744524633129,-544.47,0.00019178,2]
[357894582,1744524633139,-556.27,0.00019178,2]
[357894583,1744524633148,-9774.6534766,0.00019178,2]
[357894584,1744524633160,-3368.6265234,0.00019178,2]
[357894585,1744524633170,-500.0,0.00019178,2]
[357894586,1744524633180,-500.0,0.00019178,2]
[357894587,1744524633189,-500.0,0.00019178,2]
[357894588,1744524633198,-717.4,0.00019178,2]
[357894589,1744524633207,-1672.35,0.00019178,2]
[357894590,1744524633217,-500.0,0.00019178,2]
[357894591,1744524633226,-500.0,0.00019178,2]
[357894592,1744524633235,-500.0,0.00019178,2]
[357894593,1744524633245,-500.0,0.00019178,2]
[357894594,1744524633254,-555.97,0.00019178,2]
[357894595,1744524633264,-195.07135443,0.00019178,2]
[357894596,1744524633273,-500.0,0.00019178,2]
[357894597,1744524633283,-500.0,0.00019178,2]
[357894598,1744524633293,-500.0,0.00019178,2]
[357894599,1744524633303,-1384.03,0.00019178,2]
[357894600,1744524633312,-1979.65,0.00019178,2]
[357894601,1744524633322,-500.0,0.00019178,2]
[357894602,1744524633332,-500.0,0.00019178,2]
[357894603,1744524633341,-500.0,0.00019178,2]
[357894604,1744524633351,-500.0,0.00019178,2]
[357894605,1744524633360,-500.0,0.00019178,2]
[357894606,1744524633371,-382.84069137,0.00019292,2]
[357894607,1744524633380,-1083.2685,0.00019351,2]
[357894608,1744524633390,-1584.0135,0.00019351,2]
[357894609,1744524633400,-224.4549,0.00019351,2]
[357894610,1744524633409,-315.7369,0.00019351,2]
[357894611,1744524633419,-200.0,0.00019452,2]
[357894612,1744524633429,-500.0,0.00019452,2]
[357894613,1744524633438,-500.0,0.00019452,2]
[357894614,1744524633448,-500.0,0.00019452,2]
[357894615,1744524633458,-500.0,0.00019452,2]
[357894616,1744524633468,-500.0,0.00019452,2]
[357894617,1744524633477,-544.47,0.00019452,2]
[357894618,1744524633487,-556.27,0.00019452,2]
[357894619,1744524633496,-13143.28,0.00019452,2]
[357894620,1744524633507,-500.0,0.00019452,2]
[357894621,1744524633516,-500.0,0.00019452,2]
[357894622,1744524633525,-500.0,0.00019452,2]
[357894623,1744524633534,-717.4,0.00019452,2]
[357894624,1744524633543,-582.74510021,0.00019452,2]
[357894625,1744524633577,-1089.60489979,0.00019452,2]
[357894626,1744524633589,-500.0,0.00019452,2]
[357894627,1744524633598,-500.0,0.00019452,2]
[357894628,1744524633608,-500.0,0.00019452,2]
[357894629,1744524633618,-191.36525437,0.00019452,2]
[357894630,1744524633628,-555.97,0.00019452,2]
[357894631,1744524633637,-500.0,0.00019452,2]
[357894632,1744524633647,-500.0,0.00019452,2]
[357894633,1744524633658,-500.0,0.00019452,2]
[357894634,1744524633668,-1384.03,0.00019452,2]
[357894635,1744524633678,-1979.65,0.00019452,2]
[357894636,1744524633687,-323.99756756,0.00019452,2]
[357894637,1744524633697,-500.0,0.00019452,2]
[357894638,1744524633706,-500.0,0.00019452,2]
[357894639,1744524633716,-454.63752249,0.00019452,2]
[357894640,1744524633725,-500.0,0.00019452,2]
[357894641,1744524633735,-189.17,0.00019464,2]
[357894642,1744524633744,-500.0,0.00019473,2]
[357894643,1744524633754,-1022.0,0.000196,2]
[357894644,1744524633763,-729.23454147,0.00019626,2]
[357894645,1744524633773,-235.8401,0.00019626,2]
[357894646,1744524633783,-200.0,0.00019647,2]
[357894647,1744524633792,-729.23454147,0.00019656,2]
[357894648,1744524633802,-729.23454147,0.00019687,2]
[357894649,1744524633812,-500.0,0.00019709,2]
[357894650,1744524633824,-500.0,0.00019709,2]
[357894651,1744524633833,-500.0,0.00019709,2]
[357894652,1744524633843,-500.0,0.00019709,2]
[357894653,1744524633852,-500.0,0.00019709,2]
[357894654,1744524633861,-500.0,0.00019709,2]
[357894655,1744524633872,-500.0,0.00019709,2]
[357894656,1744524633883,-500.0,0.00019709,2]
[357894657,1744524633893,-500.0,0.00019709,2]
[357894658,1744524633902,-500.0,0.00019709,2]
[357894659,1744524633912,-570.20650077,0.00019709,2]
[357894660,1744524633921,-500.0,0.00019709,2]
[357894661,1744524633931,-500.0,0.00019709,2]
[357894662,1744524633941,-500.0,0.00019709,2]
[357894663,1744524633951,-500.0,0.00019709,2]
[357894664,1744524633959,-500.0,0.00019709,2]
[357894665,1744524633968,-500.0,0.00019709,2]
[357894666,1744524633978,-298.25633115,0.00019709,2]
[357894667,1744524633987,-500.0,0.00019709,2]
[357894668,1744524633996,-2401.3316,0.0001971,2]
[357894669,1744524634005,-272.274,0.0001971,2]
[357894670,1744524634014,-859.8964,0.0001971,2]
[357894671,1744524634024,-299.1995,0.0001971,2]
[357894672,1744524634034,-500.0,0.0001971,2]
[357894673,1744524634043,-1647.6637,0.0001971,2]
[357894674,1744524634052,-729.23454147,0.00019717,2]
[357894675,1744524634061,-41540.54202806,0.00019726,2]
[357894676,1744524634070,-628.80364157,0.00019726,2]
[357894677,1744524634079,-504.29477448,0.00019726,2]
[357894678,1744524634088,-500.0,0.00019726,2]
[357894679,1744524634097,-500.0,0.00019726,2]
[357894680,1744524634107,-500.0,0.00019726,2]
[357894681,1744524634116,-544.47,0.00019726,2]
[357894682,1744524634125,-556.27,0.00019726,2]
[357894683,1744524634134,-8611.49595642,0.00019726,2]
[357894684,1744524634146,-1397.54038296,0.00019726,2]
[357894685,1744524634179,-500.0,0.00019709,2]
[357894686,1744524634189,-3134.24366062,0.00019726,2]
[357894687,1744524634198,-500.0,0.00019726,2]
[357894688,1744524634208,-500.0,0.00019726,2]
[357894689,1744524634217,-500.0,0.00019726,2]
[357894690,1744524634227,-717.4,0.00019726,2]
[357894691,1744524634236,-1672.35,0.00019726,2]
[357894692,1744524634246,-409.56425788,0.00019726,2]
[357894693,1744524634258,-192.14058147,0.00019726,2]
[357894694,1744524634268,-500.0,0.00019726,2]